bitfinex/quotes_BTCUSD_20210402
["timestamp","ask_amount","ask_price","bid_price","bid_amount"]
[1617389752074,1.28465,59086.0,59085.0,0.557205]
[1617389752274,1.672196,59086.0,59085.0,0.557205]
[1617389752480,2.967196,59086.0,59085.0,0.557205]
[1617389752680,4.285046,59086.0,59085.0,0.21885]
[1617389752877,3.285046,59086.0,59085.0,0.21885]
[1617389753079,4.285046,59086.0,59085.0,0.11885]
[1617389753479,3.425046,59086.0,59085.0,0.11885]
[1617389753878,2.425046,59086.0,59085.0,0.11885]
[1617389754081,1.967196,59086.0,59085.0,0.11885]
[1617389754688,2.967196,59086.0,59085.0,0.11885]
[1617389756104,1.952196,59086.0,59085.0,0.11885]
[1617389759830,2.642196,59086.0,59085.0,0.11885]
[1617389760028,1.952196,59086.0,59085.0,0.11885]
[1617389764697,1.952196,59086.0,59085.0,1.72225]
[1617389764899,1.26965,59086.0,59085.0,1.72225]
[1617389765096,1.26965,59086.0,59085.0,1.82225]
[1617389765503,1.26965,59086.0,59085.0,2.564796]
[1617389765908,1.26965,59086.0,59085.0,3.268796]
[1617389766511,1.26965,59086.0,59085.0,3.522617]
[1617389766714,1.16965,59086.0,59085.0,3.522617]
[1617389767512,1.16965,59086.0,59085.0,3.672617]
[1617389767708,1.26965,59086.0,59085.0,3.572617]
[1617389768126,1.26965,59086.0,59085.0,3.494917]
[1617389768531,1.24030109,59086.0,59085.0,3.494917]
[1617389770129,1.24030109,59086.0,59085.0,3.544917]
[1617389770526,1.24779157,59086.0,59085.0,3.544917]
[1617389771152,1.24779157,59086.0,59085.0,3.644917]
[1617389771350,1.24779157,59086.0,59085.0,3.544917]
[1617389771554,1.24779157,59086.0,59085.0,3.644917]
[1617389771754,1.14779157,59086.0,59085.0,3.644917]
[1617389771952,1.09779157,59086.0,59085.0,4.484917]
[1617389772150,1.09779157,59086.0,59085.0,3.644917]
[1617389772355,1.09779157,59086.0,59085.0,3.544917]
[1617389772751,1.19779157,59086.0,59085.0,3.544917]
[1617389774978,1.19779157,59086.0,59085.0,3.644917]
[1617389775180,1.23279157,59086.0,59085.0,3.544917]
[1617389776207,1.23279157,59086.0,59085.0,3.494917]
[1617389779637,1.23279157,59086.0,59085.0,3.544917]
[1617389779845,1.23279157,59086.0,59085.0,2.790917]
[1617389780239,1.23279157,59086.0,59085.0,2.435917]
[1617389780441,1.23279157,59086.0,59085.0,2.048371]
[1617389780638,1.23279157,59086.0,59085.0,2.752371]
[1617389780843,1.23279157,59086.0,59085.0,2.048371]
[1617389781656,1.23279157,59086.0,59085.0,2.435917]
[1617389781855,1.23279157,59086.0,59085.0,2.048371]
[1617389782258,1.23279157,59086.0,59085.0,2.620917]
[1617389782859,1.23279157,59086.0,59085.0,2.233371]
[1617389783259,1.23279157,59086.0,59085.0,2.048371]
[1617389784080,1.23259117,59086.0,59085.0,2.048371]
[1617389786901,1.23259117,59086.0,59085.0,2.435917]
[1617389787105,1.23259117,59086.0,59085.0,2.730917]
[1617389789332,1.23259117,59086.0,59085.0,2.780917]
[1617389789535,1.23259117,59086.0,59085.0,2.730917]
[1617389789734,1.23259117,59086.0,59085.0,2.780917]
[1617389791135,1.23259117,59086.0,59085.0,2.730917]
[1617389793787,1.20275114,59086.0,59085.0,2.730917]
[1617389793986,1.19675263,59086.0,59085.0,2.730917]
[1617389795003,1.19318859,59086.0,59085.0,2.730917]
[1617389796002,1.18818859,59086.0,59085.0,2.730917]
[1617389801840,1.18818859,59086.0,59085.0,2.78125763]
[1617389802035,1.18818859,59086.0,59085.0,2.730917]
[1617389802659,1.18818859,59086.0,59085.0,2.048371]
[1617389804458,1.18818859,59086.0,59085.0,2.435917]
[1617389804881,1.18818859,59086.0,59085.0,2.770917]
[1617389806483,1.18318859,59086.0,59085.0,2.383371]
[1617389808123,1.18318859,59086.0,59085.0,2.770917]
[1617389812528,1.18318859,59086.0,59085.0,2.870917]
[1617389812756,1.18318859,59086.0,59085.0,2.770917]
[1617389812958,1.18318859,59086.0,59085.0,2.820917]
[1617389813159,1.18318859,59086.0,59085.0,2.815917]
[1617389813758,1.18318859,59086.0,59085.0,2.86725347]
[1617389813961,1.18318859,59086.0,59085.0,2.815917]
[1617389818208,1.12045145,59086.0,59085.0,2.815917]
[1617389819208,1.12045145,59086.0,59085.0,2.770917]
[1617389821858,1.12045145,59086.0,59085.0,2.820917]
[1617389822477,1.12045145,59086.0,59085.0,3.277067]
[1617389822870,1.12045145,59086.0,59085.0,6.187067]
[1617389823070,1.12045145,59086.0,59085.0,6.637067]
[1617389823071,1.02045145,59086.0,59085.0,6.637067]
[1617389823672,1.02045145,59086.0,59085.0,6.537067]
[1617389823864,1.02045145,59086.0,59085.0,6.62573261]
[1617389824862,1.02045145,59086.0,59085.0,7.62573261]
[1617389825463,1.02045145,59086.0,59085.0,6.78173261]
[1617389825662,0.68218845,59086.0,59085.0,8.00173261]
[1617389826081,0.34392545,59086.0,59085.0,7.63173261]
[1617389826482,0.34392545,59086.0,59085.0,6.78173261]
[1617389827285,0.34392545,59086.0,59085.0,3.96173261]
[1617389828087,0.34392545,59086.0,59085.0,3.91173261]
[1617389828289,0.34392545,59086.0,59085.0,3.51173261]
[1617389828520,0.34392545,59086.0,59085.0,3.47173261]
[1617389828719,0.34392545,59086.0,59085.0,2.91558261]
[1617389829520,0.34392545,59086.0,59085.0,3.06558261]
[1617389830121,0.34392545,59086.0,59085.0,2.90958261]
[1617389830923,0.34392545,59086.0,59085.0,2.820917]
[1617389839523,0.34392545,59086.0,59085.0,2.920917]
[1617389839721,0.34392545,59086.0,59085.0,2.820917]
[1617389839919,0.34392545,59086.0,59085.0,2.920917]
[1617389840122,0.34392545,59086.0,59085.0,2.820917]
[1617389847985,0.29392545,59086.0,59085.0,2.770917]
[1617389850619,0.29392545,59086.0,59085.0,2.755917]
[1617389852973,1.29392545,59086.0,59085.0,2.655917]
[1617389853193,1.29392545,59086.0,59085.0,1.933371]
[1617389853194,1.80165545,59086.0,59085.0,1.933371]
[1617389853578,3.18920145,59086.0,59085.0,1.67955]
[1617389853972,3.28920145,59086.0,59085.0,1.67955]
[1617389854374,1.64920145,59086.0,59085.0,1.67955]
[1617389854996,1.64920145,59086.0,59085.0,1.77955]
[1617389856599,2.33920145,59086.0,59085.0,1.77955]
[1617389857601,2.93920145,59086.0,59085.0,1.77955]
[1617389857801,3.93920145,59086.0,59085.0,1.77955]
[1617389858205,2.93920145,59086.0,59085.0,1.77955]
[1617389858408,3.93920145,59086.0,59085.0,1.77955]
[1617389858601,2.93920145,59086.0,59085.0,1.77955]
[1617389859602,3.84920145,59086.0,59085.0,1.77955]
[1617389860419,2.93920145,59086.0,59085.0,1.77955]
[1617389861027,1.64920145,59086.0,59085.0,1.77955]
[1617389862647,2.78920145,59086.0,59085.0,1.77955]
[1617389864452,1.64920145,59086.0,59085.0,1.77955]
[1617389868408,2.76420145,59086.0,59085.0,1.77955]
[1617389871219,1.64420145,59086.0,59085.0,1.77955]
[1617389876271,2.26420145,59086.0,59085.0,1.77955]
[1617389876676,2.57603145,59086.0,59085.0,1.77955]
[1617389876875,3.03582145,59086.0,59085.0,1.77955]
[1617389877273,3.62582145,59086.0,59085.0,1.77955]
[1617389877876,2.21582145,59086.0,59085.0,1.77955]
[1617389878074,2.10399145,59086.0,59085.0,2.04455]
[1617389878272,2.35399145,59086.0,59085.0,1.77955]
[1617389879091,2.55399145,59086.0,59085.0,1.77955]
[1617389879292,3.40399145,59086.0,59085.0,1.77955]
[1617389879690,3.95899145,59086.0,59085.0,1.77955]
[1617389880692,2.90899145,59086.0,59085.0,1.77955]
[1617389881324,3.10899145,59086.0,59085.0,1.77955]
[1617389882324,3.77899145,59086.0,59085.0,1.77955]
[1617389882800,4.77899145,59086.0,59085.0,1.77955]
[1617389883009,3.77899145,59086.0,59085.0,1.77955]
[1617389883204,6.58899145,59086.0,59085.0,1.77955]
[1617389883402,5.58899145,59086.0,59085.0,1.77955]
[1617389884202,5.58399145,59086.0,59085.0,1.77955]
[1617389884401,5.48399145,59086.0,59085.0,1.77955]
[1617389885003,3.57899145,59086.0,59085.0,1.77955]
[1617389885205,4.48899145,59086.0,59085.0,1.77955]
[1617389885404,4.68399145,59086.0,59085.0,1.77955]
[1617389886204,4.48899145,59086.0,59085.0,1.77955]
[1617389886906,5.48899145,59086.0,59085.0,1.77955]
[1617389887111,5.68399145,59086.0,59085.0,1.62955]
[1617389887909,4.68399145,59086.0,59085.0,1.62955]
[1617389888109,4.48899145,59086.0,59085.0,1.62955]
[1617389888310,5.55399145,59086.0,59085.0,1.62955]
[1617389889309,4.48899145,59086.0,59085.0,1.62955]
[1617389890112,3.57899145,59086.0,59085.0,1.62955]
[1617389891113,4.19899145,59086.0,59085.0,1.62955]
[1617389891522,3.57899145,59086.0,59085.0,1.62955]
[1617389893126,5.34399145,59086.0,59085.0,1.62955]
[1617389893525,3.57899145,59086.0,59085.0,1.62955]
[1617389894345,2.90899145,59086.0,59085.0,1.62955]
[1617389894548,2.44920145,59086.0,59085.0,1.62955]
[1617389894947,2.64420145,59086.0,59085.0,1.62955]
[1617389895146,3.99420145,59086.0,59085.0,1.62955]
[1617389895545,2.64420145,59086.0,59085.0,1.62955]
[1617389895747,2.44920145,59086.0,59085.0,1.62955]
[1617389896146,3.24920145,59086.0,59085.0,1.62955]
[1617389897176,4.34420145,59086.0,59085.0,1.62955]
[1617389897378,4.06183145,59086.0,59085.0,1.62955]
[1617389897853,3.86683145,59086.0,59085.0,1.62955]
[1617389899253,4.06183145,59086.0,59085.0,1.62955]
[1617389901054,3.86683145,59086.0,59085.0,1.62955]
[1617389901651,3.38978145,59086.0,59085.0,1.62955]
[1617389901853,3.44420145,59086.0,59085.0,1.62955]
[1617389902053,3.24920145,59086.0,59085.0,1.62955]
[1617389902255,2.44920145,59086.0,59085.0,1.62955]
[1617389903455,1.83920145,59086.0,59085.0,1.62955]
[1617389904454,1.28420145,59086.0,59085.0,1.62955]
[1617389905057,2.15420145,59086.0,59085.0,1.62955]
[1617389908274,1.28420145,59086.0,59085.0,1.62955]
[1617389909076,3.31920145,59086.0,59085.0,1.62955]
[1617389909274,3.61420145,59086.0,59085.0,1.62955]
[1617389909477,3.51420145,59086.0,59085.0,1.52955]
[1617389909679,3.77220145,59086.0,59085.0,1.52955]
[1617389909902,4.97789873,59086.0,59085.0,1.52955]
[1617389910704,4.87789873,59086.0,59085.0,1.52955]
[1617389911300,3.69789873,59086.0,59085.0,1.52955]
[1617389911499,3.53989873,59086.0,59085.0,1.52955]
[1617389911702,3.87838973,59086.0,59085.0,1.52955]
[1617389912795,3.53989873,59086.0,59085.0,1.52955]
[1617389914295,3.34489873,59086.0,59085.0,1.52955]
[1617389914492,3.35872568,59086.0,59085.0,1.52955]
[1617389914892,3.55372568,59086.0,59085.0,1.52955]
[1617389915692,3.55372568,59086.0,59085.0,1.62955]
[1617389915893,3.35872568,59086.0,59085.0,1.62955]
[1617389916892,4.78872568,59086.0,59085.0,1.62455]
[1617389917092,4.98372568,59086.0,59085.0,1.62455]
[1617389917891,4.02872568,59086.0,59085.0,1.62455]
[1617389918497,3.35872568,59086.0,59085.0,1.62455]
[1617389918695,3.38442647,59086.0,59085.0,1.62455]
[1617389918892,4.01442647,59086.0,59085.0,1.62455]
[1617389919695,3.98872568,59086.0,59085.0,1.62455]
[1617389919894,3.3844255,59086.0,59085.0,1.62455]
[1617389920294,3.31920145,59086.0,59085.0,1.62455]
[1617389920509,3.38443548,59086.0,59085.0,1.62455]
[1617389920909,3.3448997,59086.0,59085.0,1.62455]
[1617389922709,3.5398997,59086.0,59085.0,1.62455]
[1617389923728,4.5298997,59086.0,59085.0,1.62455]
[1617389925130,4.50420145,59086.0,59085.0,1.62455]
[1617389925950,4.52988789,59086.0,59085.0,1.62455]
[1617389926552,4.50420145,59086.0,59085.0,1.62455]
[1617389926752,4.50420145,59086.0,59085.0,1.52455]
[1617389927153,3.51420145,59086.0,59085.0,1.52455]
[1617389928686,5.19420145,59086.0,59085.0,1.52455]
[1617389929286,5.29420145,59086.0,59085.0,1.52455]
[1617389930288,5.19420145,59086.0,59085.0,1.52455]
[1617389930900,3.51420145,59086.0,59085.0,1.52455]
[1617389932698,4.08420145,59086.0,59085.0,1.52455]
[1617389934425,3.51420145,59086.0,59085.0,1.52455]
[1617389934626,3.82113145,59086.0,59085.0,1.52455]
[1617389935626,4.95113145,59086.0,59085.0,1.52455]
[1617389935825,3.82113145,59086.0,59085.0,1.52455]
[1617389936658,4.46113145,59086.0,59085.0,1.52455]
[1617389937956,3.82113145,59086.0,59085.0,1.52455]
[1617389938156,3.98013145,59086.0,59085.0,1.52455]
[1617389939677,4.83013145,59086.0,59085.0,1.52455]
[1617389941077,3.98013145,59086.0,59085.0,1.52455]
[1617389941704,4.97013145,59086.0,59085.0,1.52455]
[1617389941908,3.98013145,59086.0,59085.0,1.52455]
[1617389942107,3.82113145,59086.0,59085.0,1.52455]
[1617389942708,3.62613145,59086.0,59085.0,1.52455]
[1617389943007,3.82113145,59086.0,59085.0,1.52455]
[1617389943805,3.62613145,59086.0,59085.0,1.52455]
[1617389944042,3.51420145,59086.0,59085.0,1.52455]
[1617389945643,4.64420145,59086.0,59085.0,1.52455]
[1617389946443,5.17907145,59086.0,59085.0,1.52455]
[1617389947258,5.17907145,59086.0,59085.0,1.52479]
[1617389950980,4.98407145,59086.0,59085.0,1.52479]
[1617389951582,5.17907145,59086.0,59085.0,1.52479]
[1617389952003,5.17885385,59086.0,59085.0,1.52479]
[1617389952207,4.98385385,59086.0,59085.0,1.52479]
[1617389952406,4.86866145,59086.0,59085.0,1.52479]
[1617389952604,5.16366145,59086.0,59085.0,1.52479]
[1617389953805,5.27136145,59086.0,59085.0,1.52479]
[1617389954007,3.84636145,59086.0,59085.0,1.52479]
[1617389954213,1.67690145,59086.0,59085.0,1.52479]
[1617389954414,1.67690145,59086.0,59085.0,1.62479]
[1617389954635,1.39190145,59086.0,59085.0,1.84979]
[1617389954832,1.28420145,59086.0,59085.0,1.84979]
[1617389955230,1.28420145,59086.0,59085.0,2.04979]
[1617389955828,1.28420145,59086.0,59085.0,1.84979]
[1617389956428,2.48420145,59086.0,59085.0,1.84979]
[1617389956628,2.48420145,59086.0,59085.0,1.62479]
[1617389956831,2.67920145,59086.0,59085.0,1.62479]
[1617389957258,3.09420145,59086.0,59085.0,1.62479]
[1617389958127,3.34803645,59086.0,59085.0,1.62479]
[1617389959134,3.15303645,59086.0,59085.0,1.62479]
[1617389959332,3.34803645,59086.0,59085.0,1.62479]
[1617389959934,3.15303645,59086.0,59085.0,1.57479]
[1617389962336,3.34803645,59086.0,59085.0,1.57479]
[1617389962536,2.14803645,59086.0,59085.0,1.57479]
[1617389962741,1.95303645,59086.0,59085.0,1.57479]
[1617389963341,2.96803645,59086.0,59085.0,1.57479]
[1617389963741,2.96711845,59086.0,59085.0,1.57479]
[1617389965140,2.14711845,59086.0,59085.0,1.57479]
[1617389965343,2.69303645,59086.0,59085.0,1.57479]
[1617389965741,2.88711845,59086.0,59085.0,1.57479]
[1617389966541,2.88711845,59086.0,59085.0,1.57455]
[1617389968355,3.98711845,59086.0,59085.0,1.57455]
[1617389971385,3.98711845,59086.0,59085.0,1.47455]
[1617389973013,3.98711845,59086.0,59085.0,1.4747504]
[1617389974808,3.79303645,59086.0,59085.0,1.4747504]
[1617389975012,2.69303645,59086.0,59085.0,1.5747504]
[1617389975214,1.95303645,59086.0,59085.0,1.5747504]
[1617389975412,1.99250201,59086.0,59085.0,1.5747504]
[1617389976233,3.29250201,59086.0,59085.0,1.5747504]
[1617389976835,3.25303645,59086.0,59085.0,1.5747504]
[1617389977538,3.44711845,59086.0,59085.0,1.5747504]
[1617389978362,3.25303645,59086.0,59085.0,1.4747504]
[1617389979759,3.25303645,59086.0,59085.0,1.5747504]
[1617389980982,3.44711845,59086.0,59085.0,1.5747504]
[1617389982383,3.2925364,59086.0,59085.0,1.5747504]
[1617389982582,3.4866184,59086.0,59085.0,1.5747504]
[1617389982783,3.2925364,59086.0,59085.0,1.5747504]
[1617389982981,3.29233135,59086.0,59085.0,1.5747504]
[1617389984013,1.99233135,59086.0,59085.0,1.5747504]
[1617389986038,3.0769134,59086.0,59085.0,1.5747504]
[1617389986239,2.92236604,59086.0,59085.0,1.5747504]
[1617389989206,2.8828314,59086.0,59085.0,1.5747504]
[1617389989405,2.92236616,59086.0,59085.0,1.5747504]
[1617389989604,1.99236616,59086.0,59085.0,1.5747504]
[1617389990007,1.9528314,59086.0,59085.0,1.5747504]
[1617389990407,1.5378314,59086.0,59085.0,1.5747504]
[1617389991107,2.8378314,59086.0,59085.0,1.5747504]
[1617389991508,3.1028314,59086.0,59085.0,1.5747504]
[1617389991709,3.2969134,59086.0,59085.0,1.5747504]
[1617389991909,3.1028314,59086.0,59085.0,1.5747504]
[1617389996115,3.2969134,59086.0,59085.0,1.5747504]
[1617389996317,3.1028314,59086.0,59085.0,1.5747504]
[1617389996736,3.2969134,59086.0,59085.0,1.5747504]
[1617389997336,3.1028314,59086.0,59085.0,1.5747504]
[1617389997537,3.2969134,59086.0,59085.0,1.4747504]
[1617389997738,3.1028314,59086.0,59085.0,1.4747504]
[1617389999660,1.8028314,59086.0,59085.0,1.4747504]
[1617389999862,1.8028314,59086.0,59085.0,1.5747504]
[1617390000061,2.8028314,59086.0,59085.0,1.5747504]
[1617390000462,2.8028314,59086.0,59085.0,1.4747504]
[1617390000866,4.1069134,59086.0,59085.0,1.4747504]
[1617390001067,5.14642628,59086.0,59085.0,1.4747504]
[1617390001280,9.0345114,59086.0,59070.0,0.3697]
[1617390001480,1.0028,59084.0,59070.0,0.3697]
[1617390001677,4.46362428,59071.0,59070.0,0.3697]
[1617390001904,6.65218028,59071.0,59070.0,0.3669]
[1617390002099,0.253989,59059.0,59046.0,0.168]
[1617390002301,0.002,59053.0,59046.0,0.168]
[1617390002501,0.00300781,59051.0,59040.0,0.3074]
[1617390002698,0.002,59046.0,59040.0,0.3074]
[1617390002896,0.002,59046.0,59040.0,0.16]
[1617390003161,2.53,59045.0,59034.0,0.03568]
[1617390003361,0.002,59042.0,59034.0,0.08568]
[1617390003563,0.75395992,59042.0,59037.0,0.003]
[1617390003761,0.035,59041.0,59034.0,0.03568]
[1617390003956,1.06895992,59041.0,59034.0,0.04004506]
[1617390004561,0.78895992,59041.0,59034.0,0.04004506]
[1617390004759,0.387546,59040.0,59034.0,0.04004506]
[1617390004958,0.035,59039.0,59034.0,0.04004506]
[1617390005155,0.58353505,59038.0,59034.0,0.04004506]
[1617390005359,0.385,59037.0,59033.0,0.00022]
[1617390005558,0.19598905,59035.0,59033.0,0.00022]
[1617390005758,0.75395992,59035.0,59033.0,0.00022]
[1617390006158,0.94994897,59035.0,59029.0,0.14454]
[1617390006356,0.25,59034.0,59030.0,0.0452]
[1617390006555,0.99895992,59034.0,59030.0,0.0452]
[1617390006960,1.19494897,59034.0,59030.0,0.0452]
[1617390007354,0.99895992,59034.0,59030.0,0.0452]
[1617390007560,0.195,59033.0,59030.0,0.0452]
[1617390007756,1.14494897,59033.0,59030.0,0.0452]
[1617390008156,1.14494897,59033.0,59030.0,0.0052]
[1617390008356,1.28377897,59033.0,59028.0,0.00044]
[1617390008557,0.195,59032.0,59028.0,0.00044]
[1617390008758,0.94895992,59032.0,59028.0,0.00044]
[1617390009159,0.19598905,59031.0,59028.0,0.00044]
[1617390009363,1.80803589,59031.0,59028.0,0.00044]
[1617390009566,4.157546,59029.0,59028.0,0.00044]
[1617390009764,4.574896,59029.0,59028.0,0.00044]
[1617390009962,5.32885592,59029.0,59028.0,0.00044]
[1617390010561,5.88885592,59029.0,59028.0,0.00044]
[1617390011763,4.06,59028.0,59027.0,9.9e-05]
[1617390011965,5.95749497,59028.0,59027.0,9.9e-05]
[1617390012813,5.95749497,59028.0,59026.0,0.11038359]
[1617390012814,3.9,59027.0,59026.0,0.11038359]
[1617390013009,5.60150592,59027.0,59026.0,0.11038359]
[1617390014615,1.70150592,59027.0,59026.0,0.11038359]
[1617390023112,1.85550592,59027.0,59026.0,0.11038359]
[1617390023712,4.79550592,59027.0,59026.0,0.11038359]
[1617390024313,4.64150592,59027.0,59026.0,0.11038359]
[1617390025116,1.70150592,59027.0,59026.0,0.11038359]
[1617390025316,1.84728759,59027.0,59026.0,0.11038359]
[1617390025714,2.89728759,59027.0,59026.0,0.11038359]
[1617390027713,3.81728759,59027.0,59026.0,0.11038359]
[1617390029552,4.96728759,59027.0,59026.0,0.11038359]
[1617390029751,3.81728759,59027.0,59026.0,0.11038359]
[1617390030152,2.89728759,59027.0,59026.0,0.11038359]
[1617390030553,1.84728759,59027.0,59026.0,0.11038359]
[1617390031672,3.23728759,59027.0,59026.0,0.11038359]
[1617390032574,3.84728759,59027.0,59026.0,0.11038359]
[1617390033527,3.23728759,59027.0,59026.0,0.11038359]
[1617390033931,1.84728759,59027.0,59026.0,0.11038359]
[1617390034129,5.86728759,59027.0,59026.0,0.10538359]
[1617390034331,4.58327664,59027.0,59026.0,0.10538359]
[1617390035728,4.57827664,59027.0,59026.0,0.10538359]
[1617390038129,2.03827664,59027.0,59026.0,0.10538359]
[1617390038331,1.84728759,59027.0,59026.0,0.10538359]
[1617390038557,5.11249497,59027.0,59026.0,0.10538359]
[1617390038957,4.88249497,59027.0,59026.0,0.10538359]
[1617390039554,5.02856416,59027.0,59026.0,0.10538359]
[1617390041986,1.84757511,59027.0,59026.0,0.10538359]
[1617390042182,5.25856416,59027.0,59026.0,0.10038359]
[1617390042382,2.29856416,59027.0,59026.0,0.10038359]
[1617390042682,3.49856416,59027.0,59026.0,0.10038359]
[1617390042884,3.59856416,59027.0,59026.0,0.10038359]
[1617390043085,3.49856416,59027.0,59026.0,0.10038359]
[1617390043482,4.43856416,59027.0,59026.0,0.10038359]
[1617390043685,3.49856416,59027.0,59026.0,0.10038359]
[1617390043905,3.23856416,59027.0,59026.0,0.10038359]
[1617390044504,4.30856416,59027.0,59026.0,0.10038359]
[1617390044704,4.71332416,59027.0,59026.0,0.10038359]
[1617390044905,3.64332416,59027.0,59026.0,0.10038359]
[1617390046110,5.90332416,59027.0,59026.0,0.09538359]
[1617390046533,3.64332416,59027.0,59026.0,0.09538359]
[1617390046935,5.77332416,59027.0,59026.0,0.09038359]
[1617390047332,4.86332416,59027.0,59026.0,0.09038359]
[1617390047733,3.63832416,59027.0,59026.0,0.09038359]
[1617390048394,4.42832416,59027.0,59026.0,0.09038359]
[1617390048594,3.63832416,59027.0,59026.0,0.09038359]
[1617390049001,3.30626592,59027.0,59026.0,0.09038359]
[1617390049225,4.09625497,59027.0,59026.0,0.09038359]
[1617390049421,6.94625497,59027.0,59026.0,0.09038359]
[1617390050023,7.09232416,59027.0,59026.0,0.09038359]
[1617390050221,7.19232416,59027.0,59026.0,0.09038359]
[1617390050425,5.91700924,59027.0,59026.0,0.09038359]
[1617390050622,5.84232416,59027.0,59026.0,0.09038359]
[1617390051022,5.69625497,59027.0,59026.0,0.09038359]
[1617390051223,5.65625497,59027.0,59026.0,0.09038359]
[1617390051421,5.60225497,59027.0,59026.0,0.09038359]
[1617390051624,5.66694005,59027.0,59026.0,0.09038359]
[1617390052244,5.62773697,59027.0,59026.0,0.09038359]
[1617390052445,5.50225497,59027.0,59026.0,0.09038359]
[1617390053244,5.60225497,59027.0,59026.0,0.09038359]
[1617390053446,5.52772368,59027.0,59026.0,0.09038359]
[1617390054049,2.51772368,59027.0,59026.0,0.09038359]
[1617390054256,1.55296368,59027.0,59026.0,0.09038359]
[1617390054482,1.32749497,59027.0,59026.0,0.09038359]
[1617390055081,1.35296566,59027.0,59026.0,0.09038359]
[1617390055281,2.34296566,59027.0,59026.0,0.09038359]
[1617390055481,1.32749497,59027.0,59026.0,0.09038359]
[1617390056283,3.87749497,59027.0,59026.0,0.09038359]
[1617390056682,4.62014497,59027.0,59026.0,0.09038359]
[1617390057295,4.34014497,59027.0,59026.0,0.09038359]
[1617390058297,1.63749497,59027.0,59026.0,0.31038359]
[1617390058497,1.14150592,59027.0,59026.0,0.31038359]
[1617390059727,1.14150592,59027.0,59026.0,0.09038359]
[1617390059925,1.32749497,59027.0,59026.0,0.09038359]
[1617390060123,1.14150592,59027.0,59026.0,0.08538359]
[1617390060327,1.88150592,59027.0,59026.0,0.08538359]
[1617390060527,2.29749497,59027.0,59026.0,0.08538359]
[1617390061528,1.47356416,59027.0,59026.0,0.08538359]
[1617390061729,1.28757511,59027.0,59026.0,0.08538359]
[1617390062129,1.28007511,59027.0,59026.0,0.08538359]
[1617390063440,1.46606416,59027.0,59026.0,0.08538359]
[1617390063640,1.54007511,59027.0,59026.0,0.08538359]
[1617390063840,1.72606416,59027.0,59026.0,0.08538359]
[1617390064052,1.54007511,59027.0,59026.0,0.08538359]
[1617390064251,1.54007511,59027.0,59026.0,3.94081405]
[1617390064252,0.74167992,59027.0,59026.0,3.94081405]
[1617390064448,0.74167992,59027.0,59026.0,4.91853005]
[1617390064449,0.71711992,59027.0,59026.0,4.91853005]
[1617390064655,0.71711992,59027.0,59026.0,5.25853005]
[1617390064656,0.70483992,59027.0,59026.0,5.25853005]
[1617390064873,0.70483992,59027.0,59026.0,6.23353005]
[1617390065274,0.70483992,59027.0,59026.0,6.94353005]
[1617390065478,0.70483992,59027.0,59026.0,7.20296505]
[1617390066272,0.85090911,59027.0,59026.0,7.20296505]
[1617390066479,0.85090911,59027.0,59026.0,7.44296505]
[1617390067506,1.57657316,59027.0,59026.0,7.44296505]
[1617390067707,1.57657316,59027.0,59026.0,7.20296505]
[1617390068108,1.57657316,59027.0,59026.0,7.30296505]
[1617390069912,1.57657316,59027.0,59026.0,7.29796505]
[1617390070122,1.57657316,59027.0,59026.0,7.69290879]
[1617390071120,1.57657316,59027.0,59026.0,7.29796505]
[1617390071323,1.57657316,59027.0,59026.0,7.13796505]
[1617390071522,1.57657316,59027.0,59026.0,7.53290879]
[1617390071723,1.57657316,59027.0,59026.0,7.13796505]
[1617390071922,1.57657316,59027.0,59026.0,7.69290879]
[1617390072124,1.57657316,59027.0,59026.0,7.29796505]
[1617390074353,1.57657316,59027.0,59026.0,7.25796505]
[1617390074753,1.57657316,59027.0,59026.0,7.15796505]
[1617390075154,1.57657316,59027.0,59026.0,6.99796505]
[1617390075372,1.57657316,59027.0,59026.0,7.39290879]
[1617390075772,1.43050397,59027.0,59026.0,7.39290879]
[1617390076171,1.43050397,59027.0,59026.0,7.55290879]
[1617390076372,1.43050397,59027.0,59026.0,7.24207833]
[1617390076574,1.43050397,59027.0,59026.0,6.45213459]
[1617390076774,1.57657316,59027.0,59026.0,6.45213459]
[1617390077372,1.57657316,59027.0,59026.0,6.55213459]
[1617390077572,1.57657316,59027.0,59026.0,6.45213459]
[1617390077777,1.57657316,59027.0,59026.0,6.85213459]
[1617390078293,1.57657316,59027.0,59026.0,6.34213459]
[1617390078483,1.57657316,59027.0,59026.0,6.30213459]
[1617390078884,1.57657316,59027.0,59026.0,6.46213459]
[1617390079087,1.57657316,59027.0,59026.0,6.31213459]
[1617390079287,1.57657316,59027.0,59026.0,6.45213459]
[1617390079497,1.57657316,59027.0,59026.0,6.35213459]
[1617390080487,1.57657316,59027.0,59026.0,6.50213459]
[1617390080741,1.43050397,59027.0,59026.0,6.50213459]
[1617390081144,1.43050397,59027.0,59026.0,1.73213459]
[1617390081344,1.43050397,59027.0,59026.0,0.91713459]
[1617390081544,1.43050397,59027.0,59026.0,0.77713459]
[1617390081747,1.57657316,59027.0,59026.0,0.33941859]
[1617390081944,1.88427316,59027.0,59026.0,0.33941859]
[1617390082341,1.88427316,59027.0,59026.0,0.08538359]
[1617390082743,1.73820397,59027.0,59026.0,0.08538359]
[1617390083141,1.43050397,59027.0,59026.0,0.08538359]
[1617390083350,1.66550397,59027.0,59026.0,0.08538359]
[1617390083953,2.44619997,59027.0,59026.0,0.08538359]
[1617390085563,2.73218902,59027.0,59026.0,0.08538359]
[1617390085753,2.54619997,59027.0,59026.0,0.08538359]
[1617390085980,5.25218902,59027.0,59026.0,0.08538359]
[1617390086379,5.25218902,59027.0,59026.0,0.08784359]
[1617390086779,2.54619997,59027.0,59026.0,0.08784359]
[1617390086979,2.73218902,59027.0,59026.0,0.08784359]
[1617390087180,2.63218902,59027.0,59026.0,0.08784359]
[1617390089398,2.62718902,59027.0,59026.0,0.08784359]
[1617390089999,2.44619997,59027.0,59026.0,0.08784359]
[1617390090200,2.62718902,59027.0,59026.0,0.08784359]
[1617390090399,2.44619997,59027.0,59026.0,0.08784359]
[1617390091002,1.66550397,59027.0,59026.0,0.08784359]
[1617390091225,1.84649302,59027.0,59026.0,0.08784359]
[1617390091429,1.99256221,59027.0,59026.0,0.08784359]
[1617390091828,1.57657316,59027.0,59026.0,0.08784359]
[1617390092030,1.57657316,59027.0,59026.0,0.34189159]
[1617390092429,1.43050397,59027.0,59026.0,0.39189159]
[1617390092630,1.43050397,59027.0,59026.0,0.50271159]
[1617390092837,1.43050397,59027.0,59026.0,3.52271159]
[1617390093034,1.43050397,59027.0,59026.0,3.93459159]
[1617390093236,1.43050397,59027.0,59026.0,4.32230759]